{"text_format":"1","workbook":"xlsx","n_sheets":5,"sheets":["Instructions","Example","Example Totals","Blank Form","Blank Form Totals"],"not_rendered":{"charts":0,"images":0,"macros":1,"external_links":0,"defined_names":0,"comments":0,"pivot_tables":0},"unopened":[],"bounds":{"document_bytes":16777216,"sheet_cells":100000,"rows_first":2000,"rows_last":500,"rows_between":2000,"halvings":0,"cell_chars":16384,"cell_head_chars":4096},"cells_cut":0,"cells_raw":0,"read":"whole","date_system":"1900"}

{"sheet":"Instructions","index":0,"n_rows":15,"n_cols":1,"rows_kept":15,"cut":false,"hidden":false,"merged":[]}
["Instructions for Completing BAtB Equipment Grant template for Multi-Sites"]
["This template is to assist sponsors to organize their claims with multiple sites and invoices which will provide for a more accurate claim.  "]
[]
["EXAMPLE AND EXAMPLE TOTAL TAB"]
["Please review this tab as a guide when entering information. Do not enter your invoice information on this spreadsheet. "]
[]
["BLANK TAB"]
["1.  Name of sites columns:   Enter the name of your sites shown on the agreement.   If you need more columns, you can press Ctrl+Shift+U."]
["2.  Invoice Information:  Enter information in Columns A, B, C, and D.  Please note:  For column \"D\"  you would enter the name of the equipment.  If you have an invoice for multiple pieces of equipment. You will need to complete multiple rows for the invoice in order to enter each piece of equipment. "]
["3.  Enter the amount for each equipment that applies for each site.   If you have one piece of equipment, you can distribute the cost for multiple sites. "]
[]
["TOTALS TAB"]
["1. This sheet will autopopulate with  the information entered from the blank form tab.  "]
["2.  If you have more than three sites, you will need to manually enter the amount allocated in Row 3"]
["3.  Remaining amount (Row 4) will show what you have remaining for the claim for each site.  If the amount is in red this means that you  are over and will need to adjust your claim form to not go over the alllocated amount. "]

{"sheet":"Example","index":1,"n_rows":22,"n_cols":34,"rows_kept":22,"cut":false,"hidden":false,"merged":[[0,29,0,33],[0,4,0,15],[0,0,1,0],[0,1,1,1],[0,2,1,2],[0,3,1,3]]}
["Vendor","Invoice #","Invoice Date","Equipment Item","NAME OF SITES (For additional Columns press Ctrl+Shift+U)",null,null,null,null,null,null,null,null,null,null,null,null,null,null,null,null,null,null,null,null,null,null,null,null,"CNP USE ONLY"]
[null,null,null,null,"Washington","Lincoln","Cesar Chavez","Clark","Grant","Franklin","Chief Joseph","Jefferson","Roosevelt","Bush","Lee","Martin Luther King",null,null,null,null,null,null,null,null,null,null,null,null,null,"TOTAL","Invoice Amount","Date ODE Approved","Date Processed EGMS","Comments"]
["Bargreen",1001,"2024-06-01","Can opener",31.56,31.56,31.56,31.56,31.56,31.56,null,null,null,null,null,null,null,null,null,null,null,null,null,null,null,null,null,null,null,{"$f":"SUM(E3:AC3)","v":189.35999999999999},1971.6,"2024-06-28","2024-07-02"]
["Bargreen",1001,"2024-06-01","Paring knife",5.91,5.91,5.91,5.91,null,null,null,null,null,null,null,null,null,null,null,null,null,null,null,null,null,null,null,null,null,23.64,1971.6,"2024-06-28","2024-07-02"]
["Bargreen",1001,"2024-06-01","Market Trays",293.10000000000002,293.10000000000002,293.10000000000002,293.10000000000002,293.10000000000002,293.10000000000002,null,null,null,null,null,null,null,null,null,null,null,null,null,null,null,null,null,null,null,1758.6,1971.6,"2024-06-28","2024-07-02"]
["Amazon",888,"2024-06-04","Small wares",643.33000000000004,650.42999999999995,684.03,684.03,727.38,651.83000000000004,null,null,null,null,null,null,null,null,null,null,null,null,null,null,null,null,null,null,null,4041.0299999999997,{"$f":"SUM(F6:K6)","v":3397.7},"2024-06-28","2024-07-02"]
["Webstore",999,"2024-06-15","Immerson Hand Mixer ",78.33,78.33,143.33000000000001,143.33000000000001,143.33000000000001,78.33,null,null,null,null,null,null,null,null,null,null,null,null,null,null,null,null,null,null,null,664.98000000000013,4000,"2024-06-28","2024-07-02"]
["Webstore",999,"2024-06-15","Paring knife",5.91,5.91,5.91,5.91,null,null,null,null,null,null,null,null,null,null,null,null,null,null,null,null,null,null,null,null,null,23.64,4000,"2024-06-28","2024-07-02"]
["Webstore",999,"2024-06-15","Market Trays",293.10000000000002,293.10000000000002,293.10000000000002,293.10000000000002,293.10000000000002,293.10000000000002,null,null,null,null,null,null,null,null,null,null,null,null,null,null,null,null,null,null,null,1758.6,4000,"2024-06-28","2024-07-02"]
["Webstore",999,"2024-06-15","Salad Bar Legs",null,null,null,670,null,null,null,null,null,null,null,null,null,null,null,null,null,null,null,null,null,null,null,null,null,670,4000,"2024-06-28","2024-07-02"]
["Webstaraunt",1000,"2024-06-20","Breakfast Cart",null,null,null,1598,null,null,null,null,null,null,null,null,null,null,null,null,null,null,null,null,null,null,null,null,null,1598,1598,null,null,"Over claim amount - sent back for corrections"]
[]
[null,null,null,null,null,null,null,null,null,null,null,null,null,null,null,null,null,null,null,null,null,null,null,null,null,null,null,null,null,{"$f":"SUM(E13:AC13)","v":0}]
[null,null,null,null,null,null,null,null,null,null,null,null,null,null,null,null,null,null,null,null,null,null,null,null,null,null,null,null,null,0]
[null,null,null,null,null,null,null,null,null,null,null,null,null,null,null,null,null,null,null,null,null,null,null,null,null,null,null,null,null,0]
[null,null,null,null,null,null,null,null,null,null,null,null,null,null,null,null,null,null,null,null,null,null,null,null,null,null,null,null,null,0]
[null,null,null,null,null,null,null,null,null,null,null,null,null,null,null,null,null,null,null,null,null,null,null,null,null,null,null,null,null,0]
[null,null,null,null,null,null,null,null,null,null,null,null,null,null,null,null,null,null,null,null,null,null,null,null,null,null,null,null,null,0]
[null,null,null,null,null,null,null,null,null,null,null,null,null,null,null,null,null,null,null,null,null,null,null,null,null,null,null,null,null,0]
[null,null,null,null,null,null,null,null,null,null,null,null,null,null,null,null,null,null,null,null,null,null,null,null,null,null,null,null,null,0]
[null,null,null,null,null,null,null,null,null,null,null,null,null,null,null,null,null,null,null,null,null,null,null,null,null,null,null,null,null,0]
[null,null,null,null,null,null,null,null,null,null,null,null,null,null,null,null,null,null,null,null,null,null,null,null,null,null,null,null,null,0]

{"sheet":"Example Totals","index":2,"n_rows":97,"n_cols":26,"rows_kept":97,"cut":false,"hidden":false,"merged":[[0,0,0,9]]}
["SUMMARY OF TOTALS FROM 'EXAMPLE' FORM"]
["SITES \n(Populated sites from 'Example' form)",{"$f":"Example!E2","v":"Washington"},{"$f":"Example!F2","v":"Lincoln"},{"$f":"Example!G2","v":"Cesar Chavez"},{"$f":"Example!H2","v":"Clark"},{"$f":"Example!I2","v":"Grant"},{"$f":"Example!J2","v":"Franklin"},{"$f":"Example!K2","v":"Chief Joseph"},{"$f":"Example!L2","v":"Jefferson"},{"$f":"Example!M2","v":"Roosevelt"},{"$f":"Example!N2","v":"Bush"},{"$f":"Example!O2","v":"Lee"},{"$f":"Example!P2","v":"Martin Luther King"},{"$f":"Example!Q2","v":0},{"$f":"'Blank Form'!R2","v":0},{"$f":"'Blank Form'!S2","v":0},{"$f":"'Blank Form'!T2","v":0},{"$f":"'Blank Form'!U2","v":0},{"$f":"'Blank Form'!V2","v":0},{"$f":"'Blank Form'!W2","v":0},{"$f":"'Blank Form'!X2","v":0},{"$f":"'Blank Form'!Y2","v":0},{"$f":"'Blank Form'!Z2","v":0},{"$f":"'Blank Form'!AA2","v":0},{"$f":"'Blank Form'!AB2","v":0},"Grand Total"]
["TOTAL \n(Populated site totals from 'Example' tab)",{"$f":"SUM(Example!E3:E50)","v":1351.2400000000002},{"$f":"SUM(Example!F3:F50)","v":1358.3400000000001},{"$f":"SUM(Example!G3:G50)","v":1456.94},{"$f":"SUM(Example!H3:H50)","v":3724.94},{"$f":"SUM(Example!I3:I50)","v":1488.4699999999998},{"$f":"SUM(Example!J3:J50)","v":1347.92},{"$f":"SUM(Example!K3:K50)","v":0},{"$f":"SUM(Example!L3:L50)","v":0},{"$f":"SUM(Example!M3:M50)","v":0},{"$f":"SUM(Example!N3:N50)","v":0},{"$f":"SUM(Example!O3:O50)","v":0},{"$f":"SUM(Example!P3:P50)","v":0},{"$f":"SUM(Example!Q3:Q50)","v":0},{"$f":"SUM('Blank Form'!R3:R50)","v":0},{"$f":"SUM('Blank Form'!S3:S50)","v":0},{"$f":"SUM('Blank Form'!T3:T50)","v":0},{"$f":"SUM('Blank Form'!U3:U50)","v":0},{"$f":"SUM('Blank Form'!V3:V50)","v":0},{"$f":"SUM('Blank Form'!W3:W50)","v":0},{"$f":"SUM('Blank Form'!X3:X50)","v":0},{"$f":"SUM('Blank Form'!Y3:Y50)","v":0},{"$f":"SUM('Blank Form'!Z3:Z50)","v":0},{"$f":"SUM('Blank Form'!AA3:AA50)","v":0},{"$f":"SUM('Blank Form'!AB3:AB50)","v":0},{"$f":"SUM(B3:Y3)","v":10727.85}]
["AMOUNT ALLOCATED FOR SY 24-25",3241.7,3241.7,3241.7,3241.7,3241.7,3241.7]
["REMAINING AMOUNT AVAILABLE",{"$f":"B4-B3","v":1890.4599999999996},{"$f":"C4-C3","v":1883.3599999999997},1784.7599999999998,-483.24000000000024,1753.23,1893.7799999999997,0,0,0,0,0,0,0,0,0,0,0,0,0,0,0,0,0,0,{"$f":"SUM(B5:Y5)","v":8722.3499999999985}]
[]
[]
[{"$f":"'Blank Form'!B6","v":0},{"$f":"'Blank Form'!AD6","v":0}]
[{"$f":"'Blank Form'!B7","v":0},{"$f":"'Blank Form'!AD7","v":0}]
[{"$f":"'Blank Form'!B8","v":0},{"$f":"'Blank Form'!AD8","v":0}]
[{"$f":"'Blank Form'!B9","v":0},{"$f":"'Blank Form'!AD9","v":0}]
[{"$f":"'Blank Form'!B10","v":0},{"$f":"'Blank Form'!AD10","v":0}]
[{"$f":"'Blank Form'!B11","v":0},{"$f":"'Blank Form'!AD11","v":0}]
[{"$f":"'Blank Form'!B12","v":0},{"$f":"'Blank Form'!AD12","v":0}]
[{"$f":"'Blank Form'!B13","v":0},{"$f":"'Blank Form'!AD13","v":0}]
[{"$f":"'Blank Form'!B14","v":0},{"$f":"'Blank Form'!AD14","v":0}]
[{"$f":"'Blank Form'!B15","v":0},{"$f":"'Blank Form'!AD15","v":0}]
[{"$f":"'Blank Form'!B16","v":0},{"$f":"'Blank Form'!AD16","v":0}]
[{"$f":"'Blank Form'!B17","v":0},{"$f":"'Blank Form'!AD17","v":0}]
[{"$f":"'Blank Form'!B18","v":0},{"$f":"'Blank Form'!AD18","v":0}]
[{"$f":"'Blank Form'!B19","v":0},{"$f":"'Blank Form'!AD19","v":0}]
[{"$f":"'Blank Form'!B20","v":0},{"$f":"'Blank Form'!AD20","v":0}]
[{"$f":"'Blank Form'!B21","v":0},{"$f":"'Blank Form'!AD21","v":0}]
[{"$f":"'Blank Form'!B22","v":0},{"$f":"'Blank Form'!AD22","v":0}]
[{"$f":"'Blank Form'!B23","v":0},{"$f":"'Blank Form'!AD23","v":0}]
[{"$f":"'Blank Form'!B24","v":0},{"$f":"'Blank Form'!AD24","v":0}]
[{"$f":"'Blank Form'!B25","v":0},{"$f":"'Blank Form'!AD25","v":0}]
[{"$f":"'Blank Form'!B26","v":0},{"$f":"'Blank Form'!AD26","v":0}]
[{"$f":"'Blank Form'!B27","v":0},{"$f":"'Blank Form'!AD27","v":0}]
[{"$f":"'Blank Form'!B28","v":0},{"$f":"'Blank Form'!AD28","v":0}]
[{"$f":"'Blank Form'!B29","v":0},{"$f":"'Blank Form'!AD29","v":0}]
[{"$f":"'Blank Form'!B30","v":0},{"$f":"'Blank Form'!AD30","v":0}]
[{"$f":"'Blank Form'!B31","v":0},{"$f":"'Blank Form'!AD31","v":0}]
[{"$f":"'Blank Form'!B32","v":0},{"$f":"'Blank Form'!AD32","v":0}]
[{"$f":"'Blank Form'!B33","v":0},{"$f":"'Blank Form'!AD33","v":0}]
[{"$f":"'Blank Form'!B34","v":0},{"$f":"'Blank Form'!AD34","v":0}]
[{"$f":"'Blank Form'!B35","v":0},{"$f":"'Blank Form'!AD35","v":0}]
[{"$f":"'Blank Form'!B36","v":0},{"$f":"'Blank Form'!AD36","v":0}]
[{"$f":"'Blank Form'!B37","v":0},{"$f":"'Blank Form'!AD37","v":0}]
[{"$f":"'Blank Form'!B38","v":0},{"$f":"'Blank Form'!AD38","v":0}]
[{"$f":"'Blank Form'!B39","v":0},{"$f":"'Blank Form'!AD39","v":0}]
[{"$f":"'Blank Form'!B40","v":0},{"$f":"'Blank Form'!AD40","v":0}]
[{"$f":"'Blank Form'!B41","v":0},{"$f":"'Blank Form'!AD41","v":0}]
[{"$f":"'Blank Form'!B42","v":0},{"$f":"'Blank Form'!AD42","v":0}]
[{"$f":"'Blank Form'!B43","v":0},{"$f":"'Blank Form'!AD43","v":0}]
[{"$f":"'Blank Form'!B44","v":0},{"$f":"'Blank Form'!AD44","v":0}]
[{"$f":"'Blank Form'!B45","v":0},{"$f":"'Blank Form'!AD45","v":0}]
[{"$f":"'Blank Form'!B46","v":0},{"$f":"'Blank Form'!AD46","v":0}]
[{"$f":"'Blank Form'!B47","v":0},{"$f":"'Blank Form'!AD47","v":0}]
[{"$f":"'Blank Form'!B48","v":0},{"$f":"'Blank Form'!AD48","v":0}]
[{"$f":"'Blank Form'!B49","v":0},{"$f":"'Blank Form'!AD49","v":0}]
[{"$f":"'Blank Form'!B50","v":0},{"$f":"'Blank Form'!AD50","v":0}]
[{"$f":"'Blank Form'!B51","v":0},{"$f":"'Blank Form'!AD51","v":0}]
[{"$f":"'Blank Form'!B52","v":0},{"$f":"'Blank Form'!AD52","v":0}]
[{"$f":"'Blank Form'!B53","v":0},{"$f":"'Blank Form'!AD53","v":0}]
[{"$f":"'Blank Form'!B54","v":0},{"$f":"'Blank Form'!AD54","v":0}]
[{"$f":"'Blank Form'!B55","v":0},{"$f":"'Blank Form'!AD55","v":0}]
[{"$f":"'Blank Form'!B56","v":0},{"$f":"'Blank Form'!AD56","v":0}]
[{"$f":"'Blank Form'!B57","v":0},{"$f":"'Blank Form'!AD57","v":0}]
[{"$f":"'Blank Form'!B58","v":0},{"$f":"'Blank Form'!AD58","v":0}]
[{"$f":"'Blank Form'!B59","v":0},{"$f":"'Blank Form'!AD59","v":0}]
[{"$f":"'Blank Form'!B60","v":0},{"$f":"'Blank Form'!AD60","v":0}]
[{"$f":"'Blank Form'!B61","v":0},{"$f":"'Blank Form'!AD61","v":0}]
[{"$f":"'Blank Form'!B62","v":0},{"$f":"'Blank Form'!AD62","v":0}]
[{"$f":"'Blank Form'!B63","v":0},{"$f":"'Blank Form'!AD63","v":0}]
[{"$f":"'Blank Form'!B64","v":0},{"$f":"'Blank Form'!AD64","v":0}]
[{"$f":"'Blank Form'!B65","v":0},{"$f":"'Blank Form'!AD65","v":0}]
[{"$f":"'Blank Form'!B66","v":0},{"$f":"'Blank Form'!AD66","v":0}]
[{"$f":"'Blank Form'!B67","v":0},{"$f":"'Blank Form'!AD67","v":0}]
[{"$f":"'Blank Form'!B68","v":0},{"$f":"'Blank Form'!AD68","v":0}]
[{"$f":"'Blank Form'!B69","v":0},{"$f":"'Blank Form'!AD69","v":0}]
[{"$f":"'Blank Form'!B70","v":0},{"$f":"'Blank Form'!AD70","v":0}]
[{"$f":"'Blank Form'!B71","v":0},{"$f":"'Blank Form'!AD71","v":0}]
[{"$f":"'Blank Form'!B72","v":0},{"$f":"'Blank Form'!AD72","v":0}]
[{"$f":"'Blank Form'!B73","v":0},{"$f":"'Blank Form'!AD73","v":0}]
[{"$f":"'Blank Form'!B74","v":0},{"$f":"'Blank Form'!AD74","v":0}]
[{"$f":"'Blank Form'!B75","v":0},{"$f":"'Blank Form'!AD75","v":0}]
[{"$f":"'Blank Form'!B76","v":0},{"$f":"'Blank Form'!AD76","v":0}]
[{"$f":"'Blank Form'!B77","v":0},{"$f":"'Blank Form'!AD77","v":0}]
[{"$f":"'Blank Form'!B78","v":0},{"$f":"'Blank Form'!AD78","v":0}]
[{"$f":"'Blank Form'!B79","v":0},{"$f":"'Blank Form'!AD79","v":0}]
[{"$f":"'Blank Form'!B80","v":0},{"$f":"'Blank Form'!AD80","v":0}]
[{"$f":"'Blank Form'!B81","v":0},{"$f":"'Blank Form'!AD81","v":0}]
[{"$f":"'Blank Form'!B82","v":0},{"$f":"'Blank Form'!AD82","v":0}]
[{"$f":"'Blank Form'!B83","v":0},{"$f":"'Blank Form'!AD83","v":0}]
[{"$f":"'Blank Form'!B84","v":0},{"$f":"'Blank Form'!AD84","v":0}]
[{"$f":"'Blank Form'!B85","v":0},{"$f":"'Blank Form'!AD85","v":0}]
[{"$f":"'Blank Form'!B86","v":0},{"$f":"'Blank Form'!AD86","v":0}]
[{"$f":"'Blank Form'!B87","v":0},{"$f":"'Blank Form'!AD87","v":0}]
[{"$f":"'Blank Form'!B88","v":0},{"$f":"'Blank Form'!AD88","v":0}]
[{"$f":"'Blank Form'!B89","v":0},{"$f":"'Blank Form'!AD89","v":0}]
[{"$f":"'Blank Form'!B90","v":0},{"$f":"'Blank Form'!AD90","v":0}]
[{"$f":"'Blank Form'!B91","v":0},{"$f":"'Blank Form'!AD91","v":0}]
[{"$f":"'Blank Form'!B92","v":0},{"$f":"'Blank Form'!AD92","v":0}]
[{"$f":"'Blank Form'!B93","v":0},{"$f":"'Blank Form'!AD93","v":0}]
[{"$f":"'Blank Form'!B94","v":0},{"$f":"'Blank Form'!AD94","v":0}]
[{"$f":"'Blank Form'!B95","v":0},{"$f":"'Blank Form'!AD95","v":0}]

{"sheet":"Blank Form","index":3,"n_rows":60,"n_cols":34,"rows_kept":60,"cut":false,"hidden":false,"merged":[[0,29,0,33],[0,0,1,0],[0,1,1,1],[0,2,1,2],[0,3,1,3],[0,4,0,15]]}
["Vendor","Invoice #","Invoice Date","Equipment Item","ENTER THE NAME OF YOUR SITES FROM THE AGREEMENT IN COLUMNS BELOW (For additional Columns press Ctrl+Shift+U)",null,null,null,null,null,null,null,null,null,null,null,null,null,null,null,null,null,null,null,null,null,null,null,null,"CNP USE ONLY"]
[null,null,null,null,null,null,null,null,null,null,null,null,null,null,null,null,null,null,null,null,null,null,null,null,null,null,null,null,null,"TOTAL","Invoice Amount","Date ODE Approved","Date Processed EGMS","Comments"]
[null,null,null,null,null,null,null,null,null,null,null,null,null,null,null,null,null,null,null,null,null,null,null,null,null,null,null,null,null,{"$f":"SUM(E3:AC3)","v":0}]
[null,null,null,null,null,null,null,null,null,null,null,null,null,null,null,null,null,null,null,null,null,null,null,null,null,null,null,null,null,{"$f":"SUM(E4:AC4)","v":0}]
[null,null,null,null,null,null,null,null,null,null,null,null,null,null,null,null,null,null,null,null,null,null,null,null,null,null,null,null,null,0]
[null,null,null,null,null,null,null,null,null,null,null,null,null,null,null,null,null,null,null,null,null,null,null,null,null,null,null,null,null,0]
[null,null,null,null,null,null,null,null,null,null,null,null,null,null,null,null,null,null,null,null,null,null,null,null,null,null,null,null,null,0]
[null,null,null,null,null,null,null,null,null,null,null,null,null,null,null,null,null,null,null,null,null,null,null,null,null,null,null,null,null,0]
[null,null,null,null,null,null,null,null,null,null,null,null,null,null,null,null,null,null,null,null,null,null,null,null,null,null,null,null,null,0]
[null,null,null,null,null,null,null,null,null,null,null,null,null,null,null,null,null,null,null,null,null,null,null,null,null,null,null,null,null,0]
[null,null,null,null,null,null,null,null,null,null,null,null,null,null,null,null,null,null,null,null,null,null,null,null,null,null,null,null,null,0]
[null,null,null,null,null,null,null,null,null,null,null,null,null,null,null,null,null,null,null,null,null,null,null,null,null,null,null,null,null,0]
[null,null,null,null,null,null,null,null,null,null,null,null,null,null,null,null,null,null,null,null,null,null,null,null,null,null,null,null,null,0]
[null,null,null,null,null,null,null,null,null,null,null,null,null,null,null,null,null,null,null,null,null,null,null,null,null,null,null,null,null,0]
[null,null,null,null,null,null,null,null,null,null,null,null,null,null,null,null,null,null,null,null,null,null,null,null,null,null,null,null,null,0]
[null,null,null,null,null,null,null,null,null,null,null,null,null,null,null,null,null,null,null,null,null,null,null,null,null,null,null,null,null,0]
[null,null,null,null,null,null,null,null,null,null,null,null,null,null,null,null,null,null,null,null,null,null,null,null,null,null,null,null,null,0]
[null,null,null,null,null,null,null,null,null,null,null,null,null,null,null,null,null,null,null,null,null,null,null,null,null,null,null,null,null,0]
[null,null,null,null,null,null,null,null,null,null,null,null,null,null,null,null,null,null,null,null,null,null,null,null,null,null,null,null,null,0]
[null,null,null,null,null,null,null,null,null,null,null,null,null,null,null,null,null,null,null,null,null,null,null,null,null,null,null,null,null,0]
[null,null,null,null,null,null,null,null,null,null,null,null,null,null,null,null,null,null,null,null,null,null,null,null,null,null,null,null,null,0]
[null,null,null,null,null,null,null,null,null,null,null,null,null,null,null,null,null,null,null,null,null,null,null,null,null,null,null,null,null,0]
[null,null,null,null,null,null,null,null,null,null,null,null,null,null,null,null,null,null,null,null,null,null,null,null,null,null,null,null,null,0]
[null,null,null,null,null,null,null,null,null,null,null,null,null,null,null,null,null,null,null,null,null,null,null,null,null,null,null,null,null,0]
[null,null,null,null,null,null,null,null,null,null,null,null,null,null,null,null,null,null,null,null,null,null,null,null,null,null,null,null,null,0]
[null,null,null,null,null,null,null,null,null,null,null,null,null,null,null,null,null,null,null,null,null,null,null,null,null,null,null,null,null,0]
[null,null,null,null,null,null,null,null,null,null,null,null,null,null,null,null,null,null,null,null,null,null,null,null,null,null,null,null,null,0]
[null,null,null,null,null,null,null,null,null,null,null,null,null,null,null,null,null,null,null,null,null,null,null,null,null,null,null,null,null,0]
[null,null,null,null,null,null,null,null,null,null,null,null,null,null,null,null,null,null,null,null,null,null,null,null,null,null,null,null,null,0]
[null,null,null,null,null,null,null,null,null,null,null,null,null,null,null,null,null,null,null,null,null,null,null,null,null,null,null,null,null,0]
[null,null,null,null,null,null,null,null,null,null,null,null,null,null,null,null,null,null,null,null,null,null,null,null,null,null,null,null,null,0]
[null,null,null,null,null,null,null,null,null,null,null,null,null,null,null,null,null,null,null,null,null,null,null,null,null,null,null,null,null,0]
[null,null,null,null,null,null,null,null,null,null,null,null,null,null,null,null,null,null,null,null,null,null,null,null,null,null,null,null,null,0]
[null,null,null,null,null,null,null,null,null,null,null,null,null,null,null,null,null,null,null,null,null,null,null,null,null,null,null,null,null,0]
[null,null,null,null,null,null,null,null,null,null,null,null,null,null,null,null,null,null,null,null,null,null,null,null,null,null,null,null,null,0]
[null,null,null,null,null,null,null,null,null,null,null,null,null,null,null,null,null,null,null,null,null,null,null,null,null,null,null,null,null,0]
[null,null,null,null,null,null,null,null,null,null,null,null,null,null,null,null,null,null,null,null,null,null,null,null,null,null,null,null,null,0]
[null,null,null,null,null,null,null,null,null,null,null,null,null,null,null,null,null,null,null,null,null,null,null,null,null,null,null,null,null,0]
[null,null,null,null,null,null,null,null,null,null,null,null,null,null,null,null,null,null,null,null,null,null,null,null,null,null,null,null,null,0]
[null,null,null,null,null,null,null,null,null,null,null,null,null,null,null,null,null,null,null,null,null,null,null,null,null,null,null,null,null,0]
[null,null,null,null,null,null,null,null,null,null,null,null,null,null,null,null,null,null,null,null,null,null,null,null,null,null,null,null,null,0]
[null,null,null,null,null,null,null,null,null,null,null,null,null,null,null,null,null,null,null,null,null,null,null,null,null,null,null,null,null,0]
[null,null,null,null,null,null,null,null,null,null,null,null,null,null,null,null,null,null,null,null,null,null,null,null,null,null,null,null,null,0]
[null,null,null,null,null,null,null,null,null,null,null,null,null,null,null,null,null,null,null,null,null,null,null,null,null,null,null,null,null,0]
[null,null,null,null,null,null,null,null,null,null,null,null,null,null,null,null,null,null,null,null,null,null,null,null,null,null,null,null,null,0]
[null,null,null,null,null,null,null,null,null,null,null,null,null,null,null,null,null,null,null,null,null,null,null,null,null,null,null,null,null,0]
[null,null,null,null,null,null,null,null,null,null,null,null,null,null,null,null,null,null,null,null,null,null,null,null,null,null,null,null,null,0]
[null,null,null,null,null,null,null,null,null,null,null,null,null,null,null,null,null,null,null,null,null,null,null,null,null,null,null,null,null,0]
[null,null,null,null,null,null,null,null,null,null,null,null,null,null,null,null,null,null,null,null,null,null,null,null,null,null,null,null,null,0]
[null,null,null,null,null,null,null,null,null,null,null,null,null,null,null,null,null,null,null,null,null,null,null,null,null,null,null,null,null,0]
[null,null,null,null,null,null,null,null,null,null,null,null,null,null,null,null,null,null,null,null,null,null,null,null,null,null,null,null,null,0]
[null,null,null,null,null,null,null,null,null,null,null,null,null,null,null,null,null,null,null,null,null,null,null,null,null,null,null,null,null,0]
[null,null,null,null,null,null,null,null,null,null,null,null,null,null,null,null,null,null,null,null,null,null,null,null,null,null,null,null,null,0]
[null,null,null,null,null,null,null,null,null,null,null,null,null,null,null,null,null,null,null,null,null,null,null,null,null,null,null,null,null,0]
[null,null,null,null,null,null,null,null,null,null,null,null,null,null,null,null,null,null,null,null,null,null,null,null,null,null,null,null,null,0]
[null,null,null,null,null,null,null,null,null,null,null,null,null,null,null,null,null,null,null,null,null,null,null,null,null,null,null,null,null,0]
[null,null,null,null,null,null,null,null,null,null,null,null,null,null,null,null,null,null,null,null,null,null,null,null,null,null,null,null,null,0]
[null,null,null,null,null,null,null,null,null,null,null,null,null,null,null,null,null,null,null,null,null,null,null,null,null,null,null,null,null,0]
[null,null,null,null,null,null,null,null,null,null,null,null,null,null,null,null,null,null,null,null,null,null,null,null,null,null,null,null,null,0]
[null,null,null,null,null,null,null,null,null,null,null,null,null,null,null,null,null,null,null,null,null,null,null,null,null,null,null,null,null,0]

{"sheet":"Blank Form Totals","index":4,"n_rows":97,"n_cols":26,"rows_kept":97,"cut":false,"hidden":false,"merged":[[0,0,0,9]]}
["SUMMARY OF TOTALS FROM 'BLANK' FORM"]
["SITES \n(Will populate sites listed on 'blank' form)",{"$f":"'Blank Form'!E2","v":0},{"$f":"'Blank Form'!F2","v":0},{"$f":"'Blank Form'!G2","v":0},{"$f":"'Blank Form'!H2","v":0},{"$f":"'Blank Form'!I2","v":0},{"$f":"'Blank Form'!J2","v":0},{"$f":"'Blank Form'!K2","v":0},{"$f":"'Blank Form'!L2","v":0},{"$f":"'Blank Form'!M2","v":0},{"$f":"'Blank Form'!N2","v":0},{"$f":"'Blank Form'!O2","v":0},{"$f":"'Blank Form'!P2","v":0},{"$f":"'Blank Form'!Q2","v":0},{"$f":"'Blank Form'!R2","v":0},{"$f":"'Blank Form'!S2","v":0},{"$f":"'Blank Form'!T2","v":0},{"$f":"'Blank Form'!U2","v":0},{"$f":"'Blank Form'!V2","v":0},{"$f":"'Blank Form'!W2","v":0},{"$f":"'Blank Form'!X2","v":0},{"$f":"'Blank Form'!Y2","v":0},{"$f":"'Blank Form'!Z2","v":0},{"$f":"'Blank Form'!AA2","v":0},{"$f":"'Blank Form'!AB2","v":0},"Grand Total"]
["TOTAL \n(Will populate site totals from 'Blank' tab)",{"$f":"SUM('Blank Form'!E3:E50)","v":0},{"$f":"SUM('Blank Form'!F3:F50)","v":0},{"$f":"SUM('Blank Form'!G3:G50)","v":0},{"$f":"SUM('Blank Form'!H3:H50)","v":0},{"$f":"SUM('Blank Form'!I3:I50)","v":0},{"$f":"SUM('Blank Form'!J3:J50)","v":0},{"$f":"SUM('Blank Form'!K3:K50)","v":0},{"$f":"SUM('Blank Form'!L3:L50)","v":0},{"$f":"SUM('Blank Form'!M3:M50)","v":0},{"$f":"SUM('Blank Form'!N3:N50)","v":0},{"$f":"SUM('Blank Form'!O3:O50)","v":0},{"$f":"SUM('Blank Form'!P3:P50)","v":0},{"$f":"SUM('Blank Form'!Q3:Q50)","v":0},{"$f":"SUM('Blank Form'!R3:R50)","v":0},{"$f":"SUM('Blank Form'!S3:S50)","v":0},{"$f":"SUM('Blank Form'!T3:T50)","v":0},{"$f":"SUM('Blank Form'!U3:U50)","v":0},{"$f":"SUM('Blank Form'!V3:V50)","v":0},{"$f":"SUM('Blank Form'!W3:W50)","v":0},{"$f":"SUM('Blank Form'!X3:X50)","v":0},{"$f":"SUM('Blank Form'!Y3:Y50)","v":0},{"$f":"SUM('Blank Form'!Z3:Z50)","v":0},{"$f":"SUM('Blank Form'!AA3:AA50)","v":0},{"$f":"SUM('Blank Form'!AB3:AB50)","v":0},{"$f":"SUM(B3:Y3)","v":0}]
["AMOUNT ALLOCATED FOR SY 24-25",3241.7,3241.7,3241.7]
["REMAINING AMOUNT AVAILABLE",{"$f":"B4-B3","v":3241.7},{"$f":"C4-C3","v":3241.7},3241.7,0,0,0,0,0,0,0,0,0,0,0,0,0,0,0,0,0,0,0,0,0,{"$f":"SUM(B5:Y5)","v":9725.0999999999985}]
[]
[]
[{"$f":"'Blank Form'!B6","v":0},{"$f":"'Blank Form'!AD6","v":0}]
[{"$f":"'Blank Form'!B7","v":0},{"$f":"'Blank Form'!AD7","v":0}]
[{"$f":"'Blank Form'!B8","v":0},{"$f":"'Blank Form'!AD8","v":0}]
[{"$f":"'Blank Form'!B9","v":0},{"$f":"'Blank Form'!AD9","v":0}]
[{"$f":"'Blank Form'!B10","v":0},{"$f":"'Blank Form'!AD10","v":0}]
[{"$f":"'Blank Form'!B11","v":0},{"$f":"'Blank Form'!AD11","v":0}]
[{"$f":"'Blank Form'!B12","v":0},{"$f":"'Blank Form'!AD12","v":0}]
[{"$f":"'Blank Form'!B13","v":0},{"$f":"'Blank Form'!AD13","v":0}]
[{"$f":"'Blank Form'!B14","v":0},{"$f":"'Blank Form'!AD14","v":0}]
[{"$f":"'Blank Form'!B15","v":0},{"$f":"'Blank Form'!AD15","v":0}]
[{"$f":"'Blank Form'!B16","v":0},{"$f":"'Blank Form'!AD16","v":0}]
[{"$f":"'Blank Form'!B17","v":0},{"$f":"'Blank Form'!AD17","v":0}]
[{"$f":"'Blank Form'!B18","v":0},{"$f":"'Blank Form'!AD18","v":0}]
[{"$f":"'Blank Form'!B19","v":0},{"$f":"'Blank Form'!AD19","v":0}]
[{"$f":"'Blank Form'!B20","v":0},{"$f":"'Blank Form'!AD20","v":0}]
[{"$f":"'Blank Form'!B21","v":0},{"$f":"'Blank Form'!AD21","v":0}]
[{"$f":"'Blank Form'!B22","v":0},{"$f":"'Blank Form'!AD22","v":0}]
[{"$f":"'Blank Form'!B23","v":0},{"$f":"'Blank Form'!AD23","v":0}]
[{"$f":"'Blank Form'!B24","v":0},{"$f":"'Blank Form'!AD24","v":0}]
[{"$f":"'Blank Form'!B25","v":0},{"$f":"'Blank Form'!AD25","v":0}]
[{"$f":"'Blank Form'!B26","v":0},{"$f":"'Blank Form'!AD26","v":0}]
[{"$f":"'Blank Form'!B27","v":0},{"$f":"'Blank Form'!AD27","v":0}]
[{"$f":"'Blank Form'!B28","v":0},{"$f":"'Blank Form'!AD28","v":0}]
[{"$f":"'Blank Form'!B29","v":0},{"$f":"'Blank Form'!AD29","v":0}]
[{"$f":"'Blank Form'!B30","v":0},{"$f":"'Blank Form'!AD30","v":0}]
[{"$f":"'Blank Form'!B31","v":0},{"$f":"'Blank Form'!AD31","v":0}]
[{"$f":"'Blank Form'!B32","v":0},{"$f":"'Blank Form'!AD32","v":0}]
[{"$f":"'Blank Form'!B33","v":0},{"$f":"'Blank Form'!AD33","v":0}]
[{"$f":"'Blank Form'!B34","v":0},{"$f":"'Blank Form'!AD34","v":0}]
[{"$f":"'Blank Form'!B35","v":0},{"$f":"'Blank Form'!AD35","v":0}]
[{"$f":"'Blank Form'!B36","v":0},{"$f":"'Blank Form'!AD36","v":0}]
[{"$f":"'Blank Form'!B37","v":0},{"$f":"'Blank Form'!AD37","v":0}]
[{"$f":"'Blank Form'!B38","v":0},{"$f":"'Blank Form'!AD38","v":0}]
[{"$f":"'Blank Form'!B39","v":0},{"$f":"'Blank Form'!AD39","v":0}]
[{"$f":"'Blank Form'!B40","v":0},{"$f":"'Blank Form'!AD40","v":0}]
[{"$f":"'Blank Form'!B41","v":0},{"$f":"'Blank Form'!AD41","v":0}]
[{"$f":"'Blank Form'!B42","v":0},{"$f":"'Blank Form'!AD42","v":0}]
[{"$f":"'Blank Form'!B43","v":0},{"$f":"'Blank Form'!AD43","v":0}]
[{"$f":"'Blank Form'!B44","v":0},{"$f":"'Blank Form'!AD44","v":0}]
[{"$f":"'Blank Form'!B45","v":0},{"$f":"'Blank Form'!AD45","v":0}]
[{"$f":"'Blank Form'!B46","v":0},{"$f":"'Blank Form'!AD46","v":0}]
[{"$f":"'Blank Form'!B47","v":0},{"$f":"'Blank Form'!AD47","v":0}]
[{"$f":"'Blank Form'!B48","v":0},{"$f":"'Blank Form'!AD48","v":0}]
[{"$f":"'Blank Form'!B49","v":0},{"$f":"'Blank Form'!AD49","v":0}]
[{"$f":"'Blank Form'!B50","v":0},{"$f":"'Blank Form'!AD50","v":0}]
[{"$f":"'Blank Form'!B51","v":0},{"$f":"'Blank Form'!AD51","v":0}]
[{"$f":"'Blank Form'!B52","v":0},{"$f":"'Blank Form'!AD52","v":0}]
[{"$f":"'Blank Form'!B53","v":0},{"$f":"'Blank Form'!AD53","v":0}]
[{"$f":"'Blank Form'!B54","v":0},{"$f":"'Blank Form'!AD54","v":0}]
[{"$f":"'Blank Form'!B55","v":0},{"$f":"'Blank Form'!AD55","v":0}]
[{"$f":"'Blank Form'!B56","v":0},{"$f":"'Blank Form'!AD56","v":0}]
[{"$f":"'Blank Form'!B57","v":0},{"$f":"'Blank Form'!AD57","v":0}]
[{"$f":"'Blank Form'!B58","v":0},{"$f":"'Blank Form'!AD58","v":0}]
[{"$f":"'Blank Form'!B59","v":0},{"$f":"'Blank Form'!AD59","v":0}]
[{"$f":"'Blank Form'!B60","v":0},{"$f":"'Blank Form'!AD60","v":0}]
[{"$f":"'Blank Form'!B61","v":0},{"$f":"'Blank Form'!AD61","v":0}]
[{"$f":"'Blank Form'!B62","v":0},{"$f":"'Blank Form'!AD62","v":0}]
[{"$f":"'Blank Form'!B63","v":0},{"$f":"'Blank Form'!AD63","v":0}]
[{"$f":"'Blank Form'!B64","v":0},{"$f":"'Blank Form'!AD64","v":0}]
[{"$f":"'Blank Form'!B65","v":0},{"$f":"'Blank Form'!AD65","v":0}]
[{"$f":"'Blank Form'!B66","v":0},{"$f":"'Blank Form'!AD66","v":0}]
[{"$f":"'Blank Form'!B67","v":0},{"$f":"'Blank Form'!AD67","v":0}]
[{"$f":"'Blank Form'!B68","v":0},{"$f":"'Blank Form'!AD68","v":0}]
[{"$f":"'Blank Form'!B69","v":0},{"$f":"'Blank Form'!AD69","v":0}]
[{"$f":"'Blank Form'!B70","v":0},{"$f":"'Blank Form'!AD70","v":0}]
[{"$f":"'Blank Form'!B71","v":0},{"$f":"'Blank Form'!AD71","v":0}]
[{"$f":"'Blank Form'!B72","v":0},{"$f":"'Blank Form'!AD72","v":0}]
[{"$f":"'Blank Form'!B73","v":0},{"$f":"'Blank Form'!AD73","v":0}]
[{"$f":"'Blank Form'!B74","v":0},{"$f":"'Blank Form'!AD74","v":0}]
[{"$f":"'Blank Form'!B75","v":0},{"$f":"'Blank Form'!AD75","v":0}]
[{"$f":"'Blank Form'!B76","v":0},{"$f":"'Blank Form'!AD76","v":0}]
[{"$f":"'Blank Form'!B77","v":0},{"$f":"'Blank Form'!AD77","v":0}]
[{"$f":"'Blank Form'!B78","v":0},{"$f":"'Blank Form'!AD78","v":0}]
[{"$f":"'Blank Form'!B79","v":0},{"$f":"'Blank Form'!AD79","v":0}]
[{"$f":"'Blank Form'!B80","v":0},{"$f":"'Blank Form'!AD80","v":0}]
[{"$f":"'Blank Form'!B81","v":0},{"$f":"'Blank Form'!AD81","v":0}]
[{"$f":"'Blank Form'!B82","v":0},{"$f":"'Blank Form'!AD82","v":0}]
[{"$f":"'Blank Form'!B83","v":0},{"$f":"'Blank Form'!AD83","v":0}]
[{"$f":"'Blank Form'!B84","v":0},{"$f":"'Blank Form'!AD84","v":0}]
[{"$f":"'Blank Form'!B85","v":0},{"$f":"'Blank Form'!AD85","v":0}]
[{"$f":"'Blank Form'!B86","v":0},{"$f":"'Blank Form'!AD86","v":0}]
[{"$f":"'Blank Form'!B87","v":0},{"$f":"'Blank Form'!AD87","v":0}]
[{"$f":"'Blank Form'!B88","v":0},{"$f":"'Blank Form'!AD88","v":0}]
[{"$f":"'Blank Form'!B89","v":0},{"$f":"'Blank Form'!AD89","v":0}]
[{"$f":"'Blank Form'!B90","v":0},{"$f":"'Blank Form'!AD90","v":0}]
[{"$f":"'Blank Form'!B91","v":0},{"$f":"'Blank Form'!AD91","v":0}]
[{"$f":"'Blank Form'!B92","v":0},{"$f":"'Blank Form'!AD92","v":0}]
[{"$f":"'Blank Form'!B93","v":0},{"$f":"'Blank Form'!AD93","v":0}]
[{"$f":"'Blank Form'!B94","v":0},{"$f":"'Blank Form'!AD94","v":0}]
[{"$f":"'Blank Form'!B95","v":0},{"$f":"'Blank Form'!AD95","v":0}]